{"text_format":"1","workbook":"xlsx","n_sheets":6,"sheets":["(1)&(2)","(3) Refinery","FormData","RawData","Facility","AllProductData"],"not_rendered":{"charts":0,"images":1,"macros":1,"external_links":1,"defined_names":5,"comments":0,"pivot_tables":0},"unopened":[],"bounds":{"document_bytes":16777216,"sheet_cells":100000,"rows_first":2000,"rows_last":500,"rows_between":2000,"halvings":0,"cell_chars":16384,"cell_head_chars":4096},"cells_cut":0,"cells_raw":0,"read":"whole","date_system":"1900"}

{"sheet":"(1)&(2)","index":0,"n_rows":69,"n_cols":53,"rows_kept":69,"cut":false,"hidden":false,"merged":[[2,0,2,7],[10,0,11,49],[12,0,13,24],[12,25,13,49],[16,6,16,20],[5,44,5,49],[7,40,7,49],[8,0,8,49],[9,0,9,49],[6,41,6,49],[67,2,67,11],[67,14,67,24],[67,26,67,29],[36,8,36,20],[40,5,40,8],[49,7,49,20],[40,16,40,17],[57,0,62,49],[51,12,51,13],[51,17,51,18],[53,8,53,20],[47,16,47,17],[47,5,47,8],[45,8,45,20],[18,27,20,48],[18,18,18,19],[20,18,20,19],[24,27,25,48],[38,8,38,20],[24,1,26,22],[31,27,32,48]]}
[null,null,null,null,null,null,null,null,null,null,null,null,null,null,null,null,null,null,null,null,null,null,null,null,null,null,null,null,null,null,null,null,null,null,null,null,null,null,null,null,null,null,null,null,null,null,null,null,null,null,null,"Raw Data"]
[null,null,null,null,null,null,null,null,null,null,null,null,null,null,null,null,null,null,null,null,null,null,null,null,null,null,null,null,null,null,null,null,null,null,null,null,null,null,null,null,null,null,null,null,null,null,null,null,null,null,null,"Resubmission?",{"$f":"Facility!B75","v":false}]
[null,null,null,null,null,null,null,null,null,null,null,null,null,null,null,null,null,null,null,null,null,null,null,null,null,null,null,null,null,null,null,null,null,null,null,null,null,null,null,null,null,null,null,null,null,null,null,null,null,null,null,"Company Name",{"$f":"G17","v":0}]
[null,null,null,null,null,null,null,null,null,null,null,null,null,null,null,null,null,null,null,null,null,null,null,null,null,null,null,null,null,null,null,null,null,null,null,null,null,null,null,null,null,null,null,null,null,null,null,null,null,null,null,"Rpt Pd",{"$f":"CONCATENATE(S19,O19)","v":""}]
[null,null,null,null,null,null,null,null,null,null,null,null,null,null,null,null,null,null,null,null,null,null,null,null,null,null,null,null,null,null,null,null,null,null,null,null,null,null,null,null,null,null,null,null,null,null,null,null,null,null,null,"Rpt Date",{"$f":"CONCATENATE(K21,\"/\",O21,\"/\",S21)","v":"//"}]
[null,null,null,null,null,null,null,null,null,null,null,null,null,null,null,null,null,null,null,null,null,null,null,null,null,null,null,null,null,null,null,null,null,null,null,null,null,null,null,null,null,null,null,null,"Phone: (808) 587-3807",null,null,null,null,null,null,"ID No",{"$f":"#REF!","v":{"$error":"#REF!"}}]
[null,null,null,null,null,null,null,null,null,null,null,null,null,null,null,null,null,null,null,null,null,null,null,null,null,null,null,null,null,null,null,null,null,null,null,null,null,null,null,null,null,"Email: dbedt.hseo.eiirp@hawaii.gov",null,null,null,null,null,null,null,null,null,"Info changed?"]
[null,null,null,null,null,null,null,null,null,null,null,null,null,null,null,null,null,null,null,null,null,null,null,null,null,null,null,null,null,null,null,null,null,null,null,null,null,null,null,null,"https://energy.hawaii.gov/eiirp",null,null,null,null,null,null,null,null,null,null,"Distributor",false]
["Form DBEDT-140",null,null,null,null,null,null,null,null,null,null,null,null,null,null,null,null,null,null,null,null,null,null,null,null,null,null,null,null,null,null,null,null,null,null,null,null,null,null,null,null,null,null,null,null,null,null,null,null,null,null,"Refiner"]
["MONTHLY REFINERY REPORT",null,null,null,null,null,null,null,null,null,null,null,null,null,null,null,null,null,null,null,null,null,null,null,null,null,null,null,null,null,null,null,null,null,null,null,null,null,null,null,null,null,null,null,null,null,null,null,null,null,null,"Facility Location",{"$f":"I37","v":0}]
["This Report is mandatory under chapter 486J, Hawaii Revised Statutes (\"HRS\").  Violations are subject to civil and criminal penalties pursuant to HRS § 486J-9 and other applicable laws or orders. CONFIDENTIAL PURSUANT TO APPLICABLE STATUTORY AUTHORITY (E.G., HRS § 486J-6) AND APPLICABLE PROTECTIVE ORDERS.",null,null,null,null,null,null,null,null,null,null,null,null,null,null,null,null,null,null,null,null,null,null,null,null,null,null,null,null,null,null,null,null,null,null,null,null,null,null,null,null,null,null,null,null,null,null,null,null,null,null,"Facility City",{"$f":"F41","v":" "}]
[null,null,null,null,null,null,null,null,null,null,null,null,null,null,null,null,null,null,null,null,null,null,null,null,null,null,null,null,null,null,null,null,null,null,null,null,null,null,null,null,null,null,null,null,null,null,null,null,null,null,null,"Facility State",{"$f":"M41","v":" "}]
["Part 1. Respondent Identification",null,null,null,null,null,null,null,null,null,null,null,null,null,null,null,null,null,null,null,null,null,null,null,null,"Part 2. Submission or Resubmission Information",null,null,null,null,null,null,null,null,null,null,null,null,null,null,null,null,null,null,null,null,null,null,null,null,null,"Facility Zip",{"$f":"Q41","v":" "}]
[null,null,null,null,null,null,null,null,null,null,null,null,null,null,null,null,null,null,null,null,null,null,null,null,null,null,null,null,null,null,null,null,null,null,null,null,null,null,null,null,null,null,null,null,null,null,null,null,null,null,null,"Mailing Add same?"]
[null,null,null,null,null,null,null,null,null,null,null,null,null,null,null,null,null,null,null,null,null,null,null,null,null,null,null,null,null,null,null,null,null,null,null,null,null,null,null,null,null,null,null,null,null,null,null,null,null,null,null,"Mailing Add",{"$f":"I46","v":0}]
[null,null,null,null,null,null,null,null,null,null,null,null,null,null,null,null,null,null,null,null,null,null,null,null,null,null,null,null,null,null,null,null,null,null,null,null,null,null,null,null,null,null,null,null,null,null,null,null,null,null,null,"Mailing City",{"$f":"F48","v":0}]
[null,"COMPANY NAME:",null,null,null,null,null,null,null,null,null,null,null,null,null,null,null,null,null,null,null,null,null,null,null,null,null,null,null,null,null,null,null,null,null,null,null,null,null,null,null,null,null,null,null,null,null,null,null,null,null,"Mailing State",{"$f":"M48","v":0}]
[null,null,null,null,null,null,null,null,null,null,null,null,null,null,null,null,null,null,null,null,null,null,null,null,null,null,null,null,null,null,null,null,null,null,null,null,null,null,null,null,null,null,null,null,null,null,null,null,null,null,null,"Mailing Zip",{"$f":"Q48","v":0}]
[null,"REPORT PERIOD (Month Ending):",null,null,null,null,null,null,null,null,"MONTH (##)",null,null,null,null,null,"YEAR",null,null,null,null,null,null,null,null,null,null,"A completed form must be received on or before the last day of the month following the end of the report month (e.g, July 2023 report period must be received on or before August 31, 2023).",null,null,null,null,null,null,null,null,null,null,null,null,null,null,null,null,null,null,null,null,null,null,null,"Contact Name",{"$f":"H50","v":0}]
[null,null,null,null,null,null,null,null,null,null,null,null,null,null,null,null,null,null,null,null,null,null,null,null,null,null,null,null,null,null,null,null,null,null,null,null,null,null,null,null,null,null,null,null,null,null,null,null,null,null,null,"Phone ",{"$f":"CONCATENATE(I52,\"-\",K52,\"-\",M52,\"Ext\",R52)","v":"--Ext"}]
[null,"REPORT DATE:",null,null,null,null,"MONTH (##)",null,null,null,null,null,"DAY",null,null,null,"YEAR",null,null,null,null,null,null,null,null,null,null,null,null,null,null,null,null,null,null,null,null,null,null,null,null,null,null,null,null,null,null,null,null,null,null,"Email",{"$f":"I54","v":0}]
[null,null,null,null,null,null,null,null,null,null,null,null,null,null,null,null,null,null,null,null,null,null,null,null,null,null,null,null,null,null,null,null,null,null,null,null,null,null,null,null,null,null,null,null,null,null,null,null,null,null,null,"Comments",{"$f":"A58","v":0}]
[]
[]
[null,"If respondent contact information has changed since the previous report, please check box and fill out the form below. If more than one contact and/or facility information has changed, please provide additional changes in the comments section below.",null,null,null,null,null,null,null,null,null,null,null,null,null,null,null,null,null,null,null,null,null,null,null,null,null,"Please submit a separate report for each facility. "]
[]
[]
[]
[null,null,null,null,null,null,null,null,null,null,null,null,null,null,null,null,null,null,null,null,null,null,null,null,null,null,null,"Forms must be uploaded to ",null,null,null,null,null,null,"https://eiirp.hawaii.gov/"]
[]
[]
[null,null,null,"Doing business as a (check all that apply):",null,null,null,null,null,null,null,null,null,null,null,null,null,null,null,null,null,null,null,null,null,null,null,"If you have any questions about the form after reading the PDF instructions, please contact HSEO at (808) 587-3807."]
[]
[]
[]
[]
[null,null,null,"Facility Name:"]
[]
[null,null,null,"Facility Location:",null,null,null,null,{"$f":"_xlfn.IFNA(VLOOKUP($I$37,Facility!$A$2:$E$35, 2, FALSE), \" \" )","v":" "}]
[]
[null,null,null,"City: ",null,{"$f":"_xlfn.IFNA(VLOOKUP($I$37,Facility!$A$2:$E$35, 3, FALSE), \" \" )","v":" "},null,null,null,null,"State: ",null,{"$f":"_xlfn.IFNA(VLOOKUP($I$37,Facility!$A$2:$E$35, 4, FALSE), \" \" )","v":" "},null,"   Zip:  ",null,{"$f":"_xlfn.IFNA(VLOOKUP($I$37,Facility!$A$2:$E$35, 5, FALSE), \" \" )","v":" "}]
[]
[]
[]
[]
[null,null,null,"Mailing Address:"]
[]
[null,null,null,"City: ",null,null,null,null,null,null,"State: ",null,null,null,"   Zip:  "]
[]
[null,null,null,"Contact Name: "]
[]
[null,null,null,"Phone Number: ",null,null,null,null,null,"­",null,"­",null,null,null,"   Ext.:"]
[]
[null,null,null,"Email address: "]
[]
[]
["COMMENTS: Please describe any unusual aspect of the company's reporting month's operations and/or reason for resubmission."]
[]
[]
[]
[]
[]
[]
[]
[]
[null,null,"I certify under penalty of perjury (under section 486J-9b) that the information contained in this report is true, correct and complete to the best of my knowledge. I am authorized to file this report on behalf of the company."]
[]
[null,null,null,null,null,null,null,null,null,null,null,null,null,null,null,null,null,null,null,null,null,null,null,null,null,null,{"$f":"CONCATENATE(K21,\"/\",O21,\"/\",S21)","v":"//"}]
[null,null,"Name",null,null,null,null,null,null,null,null,null,null,null,"Title",null,null,null,null,null,null,null,null,null,null,null,"Date"]

{"sheet":"(3) Refinery","index":1,"n_rows":79,"n_cols":23,"rows_kept":79,"cut":false,"hidden":false,"merged":[[51,21,51,24],[71,17,71,20],[71,21,71,24],[66,21,66,24],[67,21,67,24],[68,21,68,24],[69,21,69,24],[70,21,70,24],[58,21,58,24],[59,21,59,24],[60,21,60,24],[61,21,61,24],[62,21,62,24],[64,21,64,24],[58,17,58,20],[59,17,59,20],[60,17,60,20],[61,17,61,20],[70,17,70,20],[62,17,62,20],[64,17,64,20],[66,17,66,20],[67,17,67,20],[68,17,68,20],[31,21,31,24],[32,21,32,24],[33,21,33,24],[34,21,34,24],[35,21,35,24],[36,21,36,24],[37,21,37,24],[38,21,38,24],[39,21,39,24],[69,17,69,20],[56,17,56,20],[57,17,57,20],[52,21,52,24],[53,21,53,24],[54,21,54,24],[55,21,55,24],[56,21,56,24],[57,21,57,24],[63,17,63,20],[63,21,63,24],[51,17,51,20],[52,17,52,20],[53,17,53,20],[54,17,54,20],[55,17,55,20],[44,17,44,20],[45,17,45,20],[46,17,46,20],[47,17,47,20],[48,17,48,20],[49,17,49,20],[42,17,42,20],[43,17,43,20],[30,17,30,20],[30,21,30,24],[31,17,31,20],[32,17,32,20],[33,17,33,20],[34,17,34,20],[50,17,50,20],[40,21,40,24],[41,21,41,24],[42,21,42,24],[43,21,43,24],[44,21,44,24],[45,21,45,24],[46,21,46,24],[47,21,47,24],[48,21,48,24],[49,21,49,24],[50,21,50,24],[35,17,35,20],[36,17,36,20],[37,17,37,20],[38,17,38,20],[45,1,45,15],[35,1,35,15],[43,1,43,15],[67,1,67,15],[54,1,54,15],[62,1,62,15],[37,1,37,15],[59,1,59,15],[64,1,64,15],[38,1,38,15],[39,1,39,15],[46,1,46,15],[44,1,44,15],[51,1,51,15],[52,1,52,15],[56,1,56,15],[42,1,42,15],[39,17,39,20],[40,17,40,20],[41,17,41,20],[0,0,1,24],[71,1,71,16],[30,1,30,15],[70,1,70,15],[16,17,16,19],[31,1,31,15],[11,0,11,24],[13,0,14,24],[7,16,7,24],[9,14,9,24],[8,15,8,24],[12,0,12,24],[10,0,10,24],[40,1,40,15],[41,1,41,15],[4,0,4,7],[36,1,36,15],[34,1,34,15],[32,1,32,15],[33,1,33,15],[55,1,55,15],[68,1,68,15],[69,1,69,15],[50,1,50,15],[49,1,49,15],[61,1,61,15],[47,1,47,15],[48,1,48,15],[60,1,60,15],[58,1,58,15],[53,1,53,15],[57,1,57,15],[66,1,66,15],[63,1,63,15],[25,9,25,19],[26,9,26,19],[27,9,27,19],[17,0,17,8],[18,0,18,8],[19,0,19,8],[20,0,20,8],[22,0,22,8],[23,0,23,8],[24,0,24,8],[25,0,25,8],[26,0,26,8],[27,0,27,8],[21,0,21,8],[21,9,21,19],[17,9,17,19],[18,9,18,19],[19,9,19,19],[20,9,20,19],[22,9,22,19],[23,9,23,19],[24,9,24,19]]}
["Part 3. Refinery Activity Detail"]
[]
[]
[]
[]
[]
[]
[null,null,null,null,null,null,null,null,null,null,null,null,null,null,null,null,"Phone: (808) 587-3807"]
[null,null,null,null,null,null,null,null,null,null,null,null,null,null,null,"Email: dbedt.hseo.eiirp@hawaii.gov"]
[null,null,null,null,null,null,null,null,null,null,null,null,null,null,"https://energy.hawaii.gov/eiirp"]
["Form DBEDT-140"]
["MONTHLY REFINERY REPORT"]
[{"$f":"J23","v":""}]
["This Report is mandatory under chapter 486J, Hawaii Revised Statutes (\"HRS\").  Violations are subject to civil and criminal penalties pursuant to HRS § 486J-9 and other applicable laws or orders. CONFIDENTIAL PURSUANT TO APPLICABLE STATUTORY AUTHORITY (E.G., HRS § 486J-6) AND APPLICABLE PROTECTIVE ORDERS."]
[]
[]
[]
["Company Name",null,null,null,null,null,null,null,null,{"$f":"IF('(1)&(2)'!G17=0,\" \",'(1)&(2)'!G17)","v":" "}]
["Company Short Code",null,null,null,null,null,null,null,null,{"$f":"_xlfn.IFNA(INDEX(Facility!$A$38:$B$61, MATCH(J18,Facility!A38:A61,0), 2), \" \")","v":" "}]
["Company Code",null,null,null,null,null,null,null,null,{"$f":"_xlfn.IFNA(INDEX(Facility!$A$38:$C$61, MATCH(J18,Facility!A38:A61,0), 3), \"\")","v":""}]
["Form Code",null,null,null,null,null,null,null,null,{"$f":"IF(OR(J20=\"\",J24=\"\",J27=\"\"),\"\",_xlfn.IFNA(_xlfn.CONCAT(J24,\"-\",J20,\"-\",_xlfn.IFNA(VLOOKUP($J$22,Facility!$A$2:$H$36, 8, FALSE), \"000\" ),\"-\",J27,\"-140\"), \"\"))","v":""}]
["Facility Name",null,null,null,null,null,null,null,null,{"$f":"IF('(1)&(2)'!I37=0,\" \",'(1)&(2)'!I37)","v":" "}]
["Island",null,null,null,null,null,null,null,null,{"$f":"_xlfn.IFNA(VLOOKUP('(1)&(2)'!I37,Facility!$A$2:$F$35, 6, FALSE), \"\" )","v":""}]
["Island Code",null,null,null,null,null,null,null,null,{"$f":"_xlfn.IFNA(INDEX(Facility!$A$65:$B$72, MATCH(J23,Facility!B65:B72,0), 1), \"\")","v":""}]
["Report Date",null,null,null,null,null,null,null,null,{"$f":"CONCATENATE('(1)&(2)'!K21,\"/\",'(1)&(2)'!O21,\"/\",'(1)&(2)'!S21)","v":"//"}]
["Report Period (Month Ending)",null,null,null,null,null,null,null,null,{"$f":"CONCATENATE('(1)&(2)'!O19,\"/\",'(1)&(2)'!S19)","v":"/"}]
["Report Period",null,null,null,null,null,null,null,null,{"$f":"_xlfn.CONCAT('(1)&(2)'!S19:T19,'(1)&(2)'!O19)","v":""}]
["Resubmission (Y/N)",null,null,null,null,null,null,null,null,{"$f":"IF(Facility!B75=TRUE,\"Y\",\"N\")","v":"N"}]
[]
[]
["Line No.","Product Description",null,null,null,null,null,null,null,null,null,null,null,null,null,null,"Product Code","Total Feedstock Processed (Barrels)",null,null,null,"Total Product Produced (Barrels)"]
[1,"Crude Oil",null,null,null,null,null,null,null,null,null,null,null,null,null,null,"001"]
[2,"Unleaded Gasoline Regular (no ethanol finished)",null,null,null,null,null,null,null,null,null,null,null,null,null,null,"002"]
[3,"Unleaded Gasoline Midgrade (no ethanol finished)",null,null,null,null,null,null,null,null,null,null,null,null,null,null,"003"]
[4,"Unleaded Gasoline Premium (no ethanol finished)",null,null,null,null,null,null,null,null,null,null,null,null,null,null,"004"]
[5,"Gasoline (E10) Regular",null,null,null,null,null,null,null,null,null,null,null,null,null,null,"005"]
[6,"Gasoline (E10) Midgrade",null,null,null,null,null,null,null,null,null,null,null,null,null,null,"006"]
[7,"Gasoline (E10) Premium",null,null,null,null,null,null,null,null,null,null,null,null,null,null,"007"]
[8,"HIBOB Regular",null,null,null,null,null,null,null,null,null,null,null,null,null,null,"008"]
[9,"HIBOB Premium",null,null,null,null,null,null,null,null,null,null,null,null,null,null,"009"]
[10,"Aviation",null,null,null,null,null,null,null,null,null,null,null,null,null,null,"010"]
[11,"Jet Kerosene, Non-bonded",null,null,null,null,null,null,null,null,null,null,null,null,null,null,"011"]
[12,"Jet Kerosene, Bonded",null,null,null,null,null,null,null,null,null,null,null,null,null,null,"012"]
[13,"Military Jet Fuel (JP5 and JP8)",null,null,null,null,null,null,null,null,null,null,null,null,null,null,"013"]
[14,"No. 2 Diesel Sulfur <= 15 ppm",null,null,null,null,null,null,null,null,null,null,null,null,null,null,"015"]
[15,"No. 2 Diesel 15 ppm < Sulfur <= 500 ppm",null,null,null,null,null,null,null,null,null,null,null,null,null,null,"016"]
[16,"No. 2 Diesel Sulfur > 500",null,null,null,null,null,null,null,null,null,null,null,null,null,null,"017"]
[17,"No. 2 Fuel Oil",null,null,null,null,null,null,null,null,null,null,null,null,null,null,"018"]
[18,"Residual Fuel Oil <= 1%",null,null,null,null,null,null,null,null,null,null,null,null,null,null,"021"]
[19,"Residual Fuel Oil > 1%",null,null,null,null,null,null,null,null,null,null,null,null,null,null,"022"]
[20,"Vacuum Gas Oil",null,null,null,null,null,null,null,null,null,null,null,null,null,null,"024"]
[21,"Intermediate Fuel Oil",null,null,null,null,null,null,null,null,null,null,null,null,null,null,"025"]
[22,"Asphalt",null,null,null,null,null,null,null,null,null,null,null,null,null,null,"029"]
[23,"Propane HD-5 (Consumer)",null,null,null,null,null,null,null,null,null,null,null,null,null,null,"030"]
[24,"Ethanol",null,null,null,null,null,null,null,null,null,null,null,null,null,null,"034"]
[25,"Biodiesel >95%",null,null,null,null,null,null,null,null,null,null,null,null,null,null,"036"]
[26,"Biodiesel <30%",null,null,null,null,null,null,null,null,null,null,null,null,null,null,"037"]
[27,"Synthetic Natural Gas",null,null,null,null,null,null,null,null,null,null,null,null,null,null,"038"]
[28,"Synthetic Natural Gas Feedstock",null,null,null,null,null,null,null,null,null,null,null,null,null,null,"039"]
[29,"Alkylate",null,null,null,null,null,null,null,null,null,null,null,null,null,null,"040"]
[30,"Reformate",null,null,null,null,null,null,null,null,null,null,null,null,null,null,"041"]
[31,"Motor Gasoline Blend Components",null,null,null,null,null,null,null,null,null,null,null,null,null,null,"048"]
[32,"Naphtha",null,null,null,null,null,null,null,null,null,null,null,null,null,null,"049"]
[33,"Biodiesel Feedstock",null,null,null,null,null,null,null,null,null,null,null,null,null,null,"054"]
[34,"Unfinished Oil (all other)",null,null,null,null,null,null,null,null,null,null,null,null,null,null,"058"]
[35,"OTHER (Not listed above): Specify below"]
[36,null,null,null,null,null,null,null,null,null,null,null,null,null,null,null,{"$f":"IF(B67>\" \",\"101\",\" \")","v":" "}]
[37,null,null,null,null,null,null,null,null,null,null,null,null,null,null,null,{"$f":"IF(B68>\" \",\"101\",\" \")","v":" "}]
[38,null,null,null,null,null,null,null,null,null,null,null,null,null,null,null,{"$f":"IF(B69>\" \",\"101\",\" \")","v":" "}]
[39,null,null,null,null,null,null,null,null,null,null,null,null,null,null,null,{"$f":"IF(B70>\" \",\"101\",\" \")","v":" "}]
[40,null,null,null,null,null,null,null,null,null,null,null,null,null,null,null,{"$f":"IF(B71>\" \",\"101\",\" \")","v":" "}]
[41,"TOTAL",null,null,null,null,null,null,null,null,null,null,null,null,null,null,null,{"$f":"IF(SUM(R32:Y71)=0,\" \",SUM(R32:Y71))","v":" "}]
[]
[]
[]
[]
[]
[]
[null,null,null,null,null,null,null,null,null,null,null,null,null,"Form code: ",null,null,{"$f":"J21","v":""},null,null,null,null,null,"DBEDT-140"]

{"sheet":"FormData","index":2,"n_rows":2,"n_cols":16,"rows_kept":2,"cut":false,"hidden":true,"merged":[]}
["form_code","dbedt","company_code","asset_id","facility_code","island_code","report_date","report_period","report_period_month","report_period_year","resubmission","total_products_reported","total_barrels_reported","total_receipts","total_distribution","total_inventory"]
[{"$f":"'(3) Refinery'!J21","v":""},140,{"$f":"'(3) Refinery'!J20","v":""},{"$f":"_xlfn.IFNA(VLOOKUP('(3) Refinery'!J22,Facility!$A$2:$H$35,7, FALSE), \"\" )","v":""},{"$f":"_xlfn.IFNA(VLOOKUP('(3) Refinery'!J22,Facility!$A$2:$H$35,8, FALSE), \"\" )","v":""},{"$f":"'(3) Refinery'!J24","v":""},{"$f":"'(3) Refinery'!J25","v":"//"},{"$f":"'(3) Refinery'!J27","v":""},{"$f":"MONTH('(3) Refinery'!J26)","v":{"$error":"#VALUE!"}},{"$f":"YEAR('(3) Refinery'!J26)","v":{"$error":"#VALUE!"}},{"$f":"Facility!B75","v":false}]

{"sheet":"RawData","index":3,"n_rows":2,"n_cols":5,"rows_kept":2,"cut":false,"hidden":true,"merged":[]}
["form_code","product","product_code","feedstock_processed","product_produced"]
[{"$f":"_xlfn._xlws.SORT(_xlfn.UNIQUE(AllProductData!A2:E40),1,-1,FALSE)","v":""},"","","",""]

{"sheet":"Facility","index":4,"n_rows":75,"n_cols":8,"rows_kept":75,"cut":false,"hidden":true,"merged":[]}
["Facility Name","Facility Street Address","City","State","Zip","Island","Facility Code","Code"]
["Aloha Hilo Terminal","999 Kalanianaole Avenue","Hilo","HI","96720","Hawaii","TM_013","001"]
["Aloha Hilo Terminal 2","661 Kalanianaole Avenue","Hilo","HI","96720","Hawaii","TM_014","002"]
["Aloha Honolulu Terminal","789 North Nimitz Highway","Honolulu","HI","96817","O'ahu","TM_006","003"]
["Aloha Kahului Terminal","60 Hobron Avenue","Kahului","HI","96732","Maui","TM_015","004"]
["Aloha Nawiliwili Terminal","3145 Waapa Road","Lihue","HI","96766","Kaua'i","TM_016","005"]
["Aloha TFM Kalaeloa Terminal","91-119 Hanua Street","Kapolei","HI","96707","O'ahu","TM_010","006"]
["Hawaii Gas Barbers Point","91-571 Malakole St ","Kapolei","HI","96707","O'ahu","TM_011","007"]
["Hawaii Gas Hilo Base Yard","945 Kalanianaole Ave","Hilo","HI","96720","Hawaii","TM_017","008"]
["Hawaii Gas Kauai Base Yard","3000 Waapa Road","Lihue","HI","96766","Kaua'i","TM_018","009"]
["Hawaii Gas Kona","74-5564 Kaiwi Street","Kailua","HI","96740","Hawaii","TM_019","010"]
["Hawaii Gas Lanai","9th Street","Lanai City","HI","96763","Lana'i","TM_020","011"]
["Hawaii Gas Maui Base Yard","20 Hobron Avenue","Kahului","HI","96732","Maui","TM_021","012"]
["Hawaii Gas Molokai","Ulili Street","Kaunakakai","HI","96748","Moloka'i","TM_022","013"]
["Hawaii Petroleum Kona Cardlock","74-5558 B Kaiwi Street","Kailua-Kona","HI","96740","Hawaii","TM_023","014"]
["HFFC Airport","3201 Aolele Street","Honolulu","HI","96819","O'ahu","TM_001","015"]
["HFFC Sand Island ","50 Sand Island Access Road","Honolulu","HI","96819","O'ahu","TM_002","016"]
["IES Hilo","666 Kalanianaole Ave","Hilo","HI","96720","Hawaii","TM_024","017"]
["IES Honolulu","777 NI Nimitz Highway","Honolulu","HI","96817","O'ahu","TM_004","018"]
["IES Kahului","100 Hobron Ave","Kahului","HI","96732","Maui","TM_025","019"]
["IES Port Allen","260 Akaula St","Eleele","HI","96705","Kaua'i","TM_026","020"]
["Lanai Oil Terminal","Kaumalapau Highway","Lanai City","HI","96763","Lana'i","TM_028","022"]
["MidPac Petroleum Kawaihae Terminal","61-3651 Kawaihae Road","Kamuela","HI","96743","Hawaii","TM_029","023"]
["Pacific Biodiesel Terminal 1","1003 Makepono Street","Honolulu","HI","96819","O'ahu","TM_008","024"]
["Pacific Biodiesel Terminal 2","","Honolulu","HI",96819,"O'ahu","TM_035","025"]
["Pacific Biodiesel Terminal 3","40 Hobron Avenue","Kahului","HI","96732","Maui","TM_030","026"]
["Pacific Biodiesel Terminal 4","16-240 Mikahala Street","Keaau","HI","96749","Hawaii","TM_031","027"]
["Par Hilo","607 Kalanianaole Street","Hilo","HI","96720","Hawaii","TM_032","028"]
["Par Lihue","3651 Ahukini Road","Lihue","HI","96766","Kaua'i","TM_033","029"]
["Par Maui","140 A Hobron Avenue","Kahului","HI","96732","Maui","TM_034","030"]
["Par Mauka Terminal","#10 Wharf Rd/Beach Place","Kaunakakai","HI","96748","Moloka'i","TM_027","021"]
["Par Refinery-East","91-325 Komohana Street","Kapolei","HI","96707","O'ahu","RF_001","031"]
["Par Refinery-West","91-480 Malakole St","Kapolei","HI","96707","O'ahu","RF_002","032"]
["Par Sand Island","2 Sand Island Access Road","Honolulu","HI","96819","O'ahu","TM_007","033"]
[]
[]
["Company Name","Company Short Name","Company Code"]
["Aloha Petroleum Ltd","Aloha",10002]
["B&E Petroleum","BE",10001]
["BIG ISLAND ENERGY CO., LLC dba AKANA PETROLEUM","BIEnergy/Akana",70001]
["Big Island Biodiesel","BigIslBio",70002]
["Chevron U.S.A. Inc.","Chevron",10012]
["GARLOW PETROLEUM INC.","Garlow",10004]
["Hawaiian Electric Co., Inc.","HECO",10008]
["Hawaii Fueling Facilities Corporaion","HFFC",10003]
["Hawaii Petroleum","HIPetro",80001]
["Island Energy Services","IESD",10012]
["Island Petroleum Inc.","Island",50001]
["Kauai Petroleum Co. LTD","KIPetro",20001]
["LANAI OIL COMPANY, INC.","LanaiOil",60001]
["MAUI OIL COMPANY, INC.","MauiOil",30003]
["Maui Electric Company, Ltd.","MECO",30002]
["Mid Pac Petroleum LLC","MidPac",10005]
["Maui Petroleum","MIPetro",30001]
["OAHU PETROLEUM, INC.","OahuPetro",10009]
["Pacific Biodiesel Inc","PacBio",10006]
["Par Pacific","PAR",10013]
["Senter Petroleum Inc.","Senter",20002]
["Shell Oil Products, US","Shell",10007]
["Tesoro Hawaii Corporation ","Tesoro",10011]
["THE GAS COMPANY, LLC","TGC",10010]
[]
[]
["Zone","Region"]
["1","O'ahu"]
["2","Kaua'i"]
["3","Maui"]
["4"]
["5","Moloka'i"]
["6","Lana'i"]
["7","Hawaii"]
["8"]
[]
[]
["Resubmission?",false]

{"sheet":"AllProductData","index":5,"n_rows":40,"n_cols":5,"rows_kept":40,"cut":false,"hidden":true,"merged":[]}
["form_code","product","product_code","feedstock_processed","product_produced"]
[{"$f":"IF(AND(D2=\"\",E2=\"\"),\"\",'(3) Refinery'!$J$21)","v":""},{"$f":"IF(AND(D2=\"\",E2=\"\"),\"\",'(3) Refinery'!B32)","v":""},{"$f":"IF(AND(D2=\"\",E2=\"\"),\"\",'(3) Refinery'!Q32)","v":""},{"$f":"'(3) Refinery'!R32 & \"\"","v":""},{"$f":"'(3) Refinery'!V32 & \"\"","v":""}]
[{"$f":"IF(AND(D3=\"\",E3=\"\"),\"\",'(3) Refinery'!$J$21)","v":""},{"$f":"IF(AND(D3=\"\",E3=\"\"),\"\",'(3) Refinery'!B33)","v":""},{"$f":"IF(AND(D3=\"\",E3=\"\"),\"\",'(3) Refinery'!Q33)","v":""},{"$f":"'(3) Refinery'!R33 & \"\"","v":""},{"$f":"'(3) Refinery'!V33 & \"\"","v":""}]
[{"$f":"IF(AND(D4=\"\",E4=\"\"),\"\",'(3) Refinery'!$J$21)","v":""},{"$f":"IF(AND(D4=\"\",E4=\"\"),\"\",'(3) Refinery'!B34)","v":""},{"$f":"IF(AND(D4=\"\",E4=\"\"),\"\",'(3) Refinery'!Q34)","v":""},{"$f":"'(3) Refinery'!R34 & \"\"","v":""},{"$f":"'(3) Refinery'!V34 & \"\"","v":""}]
[{"$f":"IF(AND(D5=\"\",E5=\"\"),\"\",'(3) Refinery'!$J$21)","v":""},{"$f":"IF(AND(D5=\"\",E5=\"\"),\"\",'(3) Refinery'!B35)","v":""},{"$f":"IF(AND(D5=\"\",E5=\"\"),\"\",'(3) Refinery'!Q35)","v":""},{"$f":"'(3) Refinery'!R35 & \"\"","v":""},{"$f":"'(3) Refinery'!V35 & \"\"","v":""}]
[{"$f":"IF(AND(D6=\"\",E6=\"\"),\"\",'(3) Refinery'!$J$21)","v":""},{"$f":"IF(AND(D6=\"\",E6=\"\"),\"\",'(3) Refinery'!B36)","v":""},{"$f":"IF(AND(D6=\"\",E6=\"\"),\"\",'(3) Refinery'!Q36)","v":""},{"$f":"'(3) Refinery'!R36 & \"\"","v":""},{"$f":"'(3) Refinery'!V36 & \"\"","v":""}]
[{"$f":"IF(AND(D7=\"\",E7=\"\"),\"\",'(3) Refinery'!$J$21)","v":""},{"$f":"IF(AND(D7=\"\",E7=\"\"),\"\",'(3) Refinery'!B37)","v":""},{"$f":"IF(AND(D7=\"\",E7=\"\"),\"\",'(3) Refinery'!Q37)","v":""},{"$f":"'(3) Refinery'!R37 & \"\"","v":""},{"$f":"'(3) Refinery'!V37 & \"\"","v":""}]
[{"$f":"IF(AND(D8=\"\",E8=\"\"),\"\",'(3) Refinery'!$J$21)","v":""},{"$f":"IF(AND(D8=\"\",E8=\"\"),\"\",'(3) Refinery'!B38)","v":""},{"$f":"IF(AND(D8=\"\",E8=\"\"),\"\",'(3) Refinery'!Q38)","v":""},{"$f":"'(3) Refinery'!R38 & \"\"","v":""},{"$f":"'(3) Refinery'!V38 & \"\"","v":""}]
[{"$f":"IF(AND(D9=\"\",E9=\"\"),\"\",'(3) Refinery'!$J$21)","v":""},{"$f":"IF(AND(D9=\"\",E9=\"\"),\"\",'(3) Refinery'!B39)","v":""},{"$f":"IF(AND(D9=\"\",E9=\"\"),\"\",'(3) Refinery'!Q39)","v":""},{"$f":"'(3) Refinery'!R39 & \"\"","v":""},{"$f":"'(3) Refinery'!V39 & \"\"","v":""}]
[{"$f":"IF(AND(D10=\"\",E10=\"\"),\"\",'(3) Refinery'!$J$21)","v":""},{"$f":"IF(AND(D10=\"\",E10=\"\"),\"\",'(3) Refinery'!B40)","v":""},{"$f":"IF(AND(D10=\"\",E10=\"\"),\"\",'(3) Refinery'!Q40)","v":""},{"$f":"'(3) Refinery'!R40 & \"\"","v":""},{"$f":"'(3) Refinery'!V40 & \"\"","v":""}]
[{"$f":"IF(AND(D11=\"\",E11=\"\"),\"\",'(3) Refinery'!$J$21)","v":""},{"$f":"IF(AND(D11=\"\",E11=\"\"),\"\",'(3) Refinery'!B41)","v":""},{"$f":"IF(AND(D11=\"\",E11=\"\"),\"\",'(3) Refinery'!Q41)","v":""},{"$f":"'(3) Refinery'!R41 & \"\"","v":""},{"$f":"'(3) Refinery'!V41 & \"\"","v":""}]
[{"$f":"IF(AND(D12=\"\",E12=\"\"),\"\",'(3) Refinery'!$J$21)","v":""},{"$f":"IF(AND(D12=\"\",E12=\"\"),\"\",'(3) Refinery'!B42)","v":""},{"$f":"IF(AND(D12=\"\",E12=\"\"),\"\",'(3) Refinery'!Q42)","v":""},{"$f":"'(3) Refinery'!R42 & \"\"","v":""},{"$f":"'(3) Refinery'!V42 & \"\"","v":""}]
[{"$f":"IF(AND(D13=\"\",E13=\"\"),\"\",'(3) Refinery'!$J$21)","v":""},{"$f":"IF(AND(D13=\"\",E13=\"\"),\"\",'(3) Refinery'!B43)","v":""},{"$f":"IF(AND(D13=\"\",E13=\"\"),\"\",'(3) Refinery'!Q43)","v":""},{"$f":"'(3) Refinery'!R43 & \"\"","v":""},{"$f":"'(3) Refinery'!V43 & \"\"","v":""}]
[{"$f":"IF(AND(D14=\"\",E14=\"\"),\"\",'(3) Refinery'!$J$21)","v":""},{"$f":"IF(AND(D14=\"\",E14=\"\"),\"\",'(3) Refinery'!B44)","v":""},{"$f":"IF(AND(D14=\"\",E14=\"\"),\"\",'(3) Refinery'!Q44)","v":""},{"$f":"'(3) Refinery'!R44 & \"\"","v":""},{"$f":"'(3) Refinery'!V44 & \"\"","v":""}]
[{"$f":"IF(AND(D15=\"\",E15=\"\"),\"\",'(3) Refinery'!$J$21)","v":""},{"$f":"IF(AND(D15=\"\",E15=\"\"),\"\",'(3) Refinery'!B45)","v":""},{"$f":"IF(AND(D15=\"\",E15=\"\"),\"\",'(3) Refinery'!Q45)","v":""},{"$f":"'(3) Refinery'!R45 & \"\"","v":""},{"$f":"'(3) Refinery'!V45 & \"\"","v":""}]
[{"$f":"IF(AND(D16=\"\",E16=\"\"),\"\",'(3) Refinery'!$J$21)","v":""},{"$f":"IF(AND(D16=\"\",E16=\"\"),\"\",'(3) Refinery'!B46)","v":""},{"$f":"IF(AND(D16=\"\",E16=\"\"),\"\",'(3) Refinery'!Q46)","v":""},{"$f":"'(3) Refinery'!R46 & \"\"","v":""},{"$f":"'(3) Refinery'!V46 & \"\"","v":""}]
[{"$f":"IF(AND(D17=\"\",E17=\"\"),\"\",'(3) Refinery'!$J$21)","v":""},{"$f":"IF(AND(D17=\"\",E17=\"\"),\"\",'(3) Refinery'!B47)","v":""},{"$f":"IF(AND(D17=\"\",E17=\"\"),\"\",'(3) Refinery'!Q47)","v":""},{"$f":"'(3) Refinery'!R47 & \"\"","v":""},{"$f":"'(3) Refinery'!V47 & \"\"","v":""}]
[{"$f":"IF(AND(D18=\"\",E18=\"\"),\"\",'(3) Refinery'!$J$21)","v":""},{"$f":"IF(AND(D18=\"\",E18=\"\"),\"\",'(3) Refinery'!B48)","v":""},{"$f":"IF(AND(D18=\"\",E18=\"\"),\"\",'(3) Refinery'!Q48)","v":""},{"$f":"'(3) Refinery'!R48 & \"\"","v":""},{"$f":"'(3) Refinery'!V48 & \"\"","v":""}]
[{"$f":"IF(AND(D19=\"\",E19=\"\"),\"\",'(3) Refinery'!$J$21)","v":""},{"$f":"IF(AND(D19=\"\",E19=\"\"),\"\",'(3) Refinery'!B49)","v":""},{"$f":"IF(AND(D19=\"\",E19=\"\"),\"\",'(3) Refinery'!Q49)","v":""},{"$f":"'(3) Refinery'!R49 & \"\"","v":""},{"$f":"'(3) Refinery'!V49 & \"\"","v":""}]
[{"$f":"IF(AND(D20=\"\",E20=\"\"),\"\",'(3) Refinery'!$J$21)","v":""},{"$f":"IF(AND(D20=\"\",E20=\"\"),\"\",'(3) Refinery'!B50)","v":""},{"$f":"IF(AND(D20=\"\",E20=\"\"),\"\",'(3) Refinery'!Q50)","v":""},{"$f":"'(3) Refinery'!R50 & \"\"","v":""},{"$f":"'(3) Refinery'!V50 & \"\"","v":""}]
[{"$f":"IF(AND(D21=\"\",E21=\"\"),\"\",'(3) Refinery'!$J$21)","v":""},{"$f":"IF(AND(D21=\"\",E21=\"\"),\"\",'(3) Refinery'!B51)","v":""},{"$f":"IF(AND(D21=\"\",E21=\"\"),\"\",'(3) Refinery'!Q51)","v":""},{"$f":"'(3) Refinery'!R51 & \"\"","v":""},{"$f":"'(3) Refinery'!V51 & \"\"","v":""}]
[{"$f":"IF(AND(D22=\"\",E22=\"\"),\"\",'(3) Refinery'!$J$21)","v":""},{"$f":"IF(AND(D22=\"\",E22=\"\"),\"\",'(3) Refinery'!B52)","v":""},{"$f":"IF(AND(D22=\"\",E22=\"\"),\"\",'(3) Refinery'!Q52)","v":""},{"$f":"'(3) Refinery'!R52 & \"\"","v":""},{"$f":"'(3) Refinery'!V52 & \"\"","v":""}]
[{"$f":"IF(AND(D23=\"\",E23=\"\"),\"\",'(3) Refinery'!$J$21)","v":""},{"$f":"IF(AND(D23=\"\",E23=\"\"),\"\",'(3) Refinery'!B53)","v":""},{"$f":"IF(AND(D23=\"\",E23=\"\"),\"\",'(3) Refinery'!Q53)","v":""},{"$f":"'(3) Refinery'!R53 & \"\"","v":""},{"$f":"'(3) Refinery'!V53 & \"\"","v":""}]
[{"$f":"IF(AND(D24=\"\",E24=\"\"),\"\",'(3) Refinery'!$J$21)","v":""},{"$f":"IF(AND(D24=\"\",E24=\"\"),\"\",'(3) Refinery'!B54)","v":""},{"$f":"IF(AND(D24=\"\",E24=\"\"),\"\",'(3) Refinery'!Q54)","v":""},{"$f":"'(3) Refinery'!R54 & \"\"","v":""},{"$f":"'(3) Refinery'!V54 & \"\"","v":""}]
[{"$f":"IF(AND(D25=\"\",E25=\"\"),\"\",'(3) Refinery'!$J$21)","v":""},{"$f":"IF(AND(D25=\"\",E25=\"\"),\"\",'(3) Refinery'!B55)","v":""},{"$f":"IF(AND(D25=\"\",E25=\"\"),\"\",'(3) Refinery'!Q55)","v":""},{"$f":"'(3) Refinery'!R55 & \"\"","v":""},{"$f":"'(3) Refinery'!V55 & \"\"","v":""}]
[{"$f":"IF(AND(D26=\"\",E26=\"\"),\"\",'(3) Refinery'!$J$21)","v":""},{"$f":"IF(AND(D26=\"\",E26=\"\"),\"\",'(3) Refinery'!B56)","v":""},{"$f":"IF(AND(D26=\"\",E26=\"\"),\"\",'(3) Refinery'!Q56)","v":""},{"$f":"'(3) Refinery'!R56 & \"\"","v":""},{"$f":"'(3) Refinery'!V56 & \"\"","v":""}]
[{"$f":"IF(AND(D27=\"\",E27=\"\"),\"\",'(3) Refinery'!$J$21)","v":""},{"$f":"IF(AND(D27=\"\",E27=\"\"),\"\",'(3) Refinery'!B57)","v":""},{"$f":"IF(AND(D27=\"\",E27=\"\"),\"\",'(3) Refinery'!Q57)","v":""},{"$f":"'(3) Refinery'!R57 & \"\"","v":""},{"$f":"'(3) Refinery'!V57 & \"\"","v":""}]
[{"$f":"IF(AND(D28=\"\",E28=\"\"),\"\",'(3) Refinery'!$J$21)","v":""},{"$f":"IF(AND(D28=\"\",E28=\"\"),\"\",'(3) Refinery'!B58)","v":""},{"$f":"IF(AND(D28=\"\",E28=\"\"),\"\",'(3) Refinery'!Q58)","v":""},{"$f":"'(3) Refinery'!R58 & \"\"","v":""},{"$f":"'(3) Refinery'!V58 & \"\"","v":""}]
[{"$f":"IF(AND(D29=\"\",E29=\"\"),\"\",'(3) Refinery'!$J$21)","v":""},{"$f":"IF(AND(D29=\"\",E29=\"\"),\"\",'(3) Refinery'!B59)","v":""},{"$f":"IF(AND(D29=\"\",E29=\"\"),\"\",'(3) Refinery'!Q59)","v":""},{"$f":"'(3) Refinery'!R59 & \"\"","v":""},{"$f":"'(3) Refinery'!V59 & \"\"","v":""}]
[{"$f":"IF(AND(D30=\"\",E30=\"\"),\"\",'(3) Refinery'!$J$21)","v":""},{"$f":"IF(AND(D30=\"\",E30=\"\"),\"\",'(3) Refinery'!B60)","v":""},{"$f":"IF(AND(D30=\"\",E30=\"\"),\"\",'(3) Refinery'!Q60)","v":""},{"$f":"'(3) Refinery'!R60 & \"\"","v":""},{"$f":"'(3) Refinery'!V60 & \"\"","v":""}]
[{"$f":"IF(AND(D31=\"\",E31=\"\"),\"\",'(3) Refinery'!$J$21)","v":""},{"$f":"IF(AND(D31=\"\",E31=\"\"),\"\",'(3) Refinery'!B61)","v":""},{"$f":"IF(AND(D31=\"\",E31=\"\"),\"\",'(3) Refinery'!Q61)","v":""},{"$f":"'(3) Refinery'!R61 & \"\"","v":""},{"$f":"'(3) Refinery'!V61 & \"\"","v":""}]
[{"$f":"IF(AND(D32=\"\",E32=\"\"),\"\",'(3) Refinery'!$J$21)","v":""},{"$f":"IF(AND(D32=\"\",E32=\"\"),\"\",'(3) Refinery'!B62)","v":""},{"$f":"IF(AND(D32=\"\",E32=\"\"),\"\",'(3) Refinery'!Q62)","v":""},{"$f":"'(3) Refinery'!R62 & \"\"","v":""},{"$f":"'(3) Refinery'!V62 & \"\"","v":""}]
[{"$f":"IF(AND(D33=\"\",E33=\"\"),\"\",'(3) Refinery'!$J$21)","v":""},{"$f":"IF(AND(D33=\"\",E33=\"\"),\"\",'(3) Refinery'!B63)","v":""},{"$f":"IF(AND(D33=\"\",E33=\"\"),\"\",'(3) Refinery'!Q63)","v":""},{"$f":"'(3) Refinery'!R63 & \"\"","v":""},{"$f":"'(3) Refinery'!V63 & \"\"","v":""}]
[{"$f":"IF(AND(D34=\"\",E34=\"\"),\"\",'(3) Refinery'!$J$21)","v":""},{"$f":"IF(AND(D34=\"\",E34=\"\"),\"\",'(3) Refinery'!B64)","v":""},{"$f":"IF(AND(D34=\"\",E34=\"\"),\"\",'(3) Refinery'!Q64)","v":""},{"$f":"'(3) Refinery'!R64 & \"\"","v":""},{"$f":"'(3) Refinery'!V64 & \"\"","v":""}]
[{"$f":"IF(AND(D35=\"\",E35=\"\"),\"\",'(3) Refinery'!$J$21)","v":""},{"$f":"IF(AND(D35=\"\",E35=\"\"),\"\",'(3) Refinery'!B65)","v":""},{"$f":"IF(AND(D35=\"\",E35=\"\"),\"\",'(3) Refinery'!Q65)","v":""},{"$f":"'(3) Refinery'!R65 & \"\"","v":""},{"$f":"'(3) Refinery'!V65 & \"\"","v":""}]
[{"$f":"IF(AND(D36=\"\",E36=\"\"),\"\",'(3) Refinery'!$J$21)","v":""},{"$f":"IF(AND(D36=\"\",E36=\"\"),\"\",'(3) Refinery'!B67)","v":""},{"$f":"IF(AND(D36=\"\",E36=\"\"),\"\",'(3) Refinery'!Q67)","v":""},{"$f":"'(3) Refinery'!R67 & \"\"","v":""},{"$f":"'(3) Refinery'!V67 & \"\"","v":""}]
[{"$f":"IF(AND(D37=\"\",E37=\"\"),\"\",'(3) Refinery'!$J$21)","v":""},{"$f":"IF(AND(D37=\"\",E37=\"\"),\"\",'(3) Refinery'!B68)","v":""},{"$f":"IF(AND(D37=\"\",E37=\"\"),\"\",'(3) Refinery'!Q68)","v":""},{"$f":"'(3) Refinery'!R68 & \"\"","v":""},{"$f":"'(3) Refinery'!V68 & \"\"","v":""}]
[{"$f":"IF(AND(D38=\"\",E38=\"\"),\"\",'(3) Refinery'!$J$21)","v":""},{"$f":"IF(AND(D38=\"\",E38=\"\"),\"\",'(3) Refinery'!B69)","v":""},{"$f":"IF(AND(D38=\"\",E38=\"\"),\"\",'(3) Refinery'!Q69)","v":""},{"$f":"'(3) Refinery'!R69 & \"\"","v":""},{"$f":"'(3) Refinery'!V69 & \"\"","v":""}]
[{"$f":"IF(AND(D39=\"\",E39=\"\"),\"\",'(3) Refinery'!$J$21)","v":""},{"$f":"IF(AND(D39=\"\",E39=\"\"),\"\",'(3) Refinery'!B70)","v":""},{"$f":"IF(AND(D39=\"\",E39=\"\"),\"\",'(3) Refinery'!Q70)","v":""},{"$f":"'(3) Refinery'!R70 & \"\"","v":""},{"$f":"'(3) Refinery'!V70 & \"\"","v":""}]
[{"$f":"IF(AND(D40=\"\",E40=\"\"),\"\",'(3) Refinery'!$J$21)","v":""},{"$f":"IF(AND(D40=\"\",E40=\"\"),\"\",'(3) Refinery'!B71)","v":""},{"$f":"IF(AND(D40=\"\",E40=\"\"),\"\",'(3) Refinery'!Q71)","v":""},{"$f":"'(3) Refinery'!R71 & \"\"","v":""},{"$f":"'(3) Refinery'!V71 & \"\"","v":""}]